[Event "Live Chess"]
[Site "Chess.com"]
[Date "2010.12.10"]
[Round "-"]
[White "JeeBusSS"]
[Black "hipposcottimus"]
[Result "0-1"]
[CurrentPosition "6k1/pp4pp/8/1P2p3/4P2p/3Pr1q1/P2KRr2/R2Q4 w - -"]
[Timezone "UTC"]
[ECO "A00"]
[ECOUrl "https://www.chess.com/openings/Vant-Kruijs-Opening-1...e5"]
[UTCDate "2010.12.10"]
[UTCTime "03:09:49"]
[WhiteElo "1502"]
[BlackElo "1684"]
[TimeControl "60"]
[Termination "hipposcottimus won on time"]
[StartTime "03:09:49"]
[EndDate "2010.12.10"]
[EndTime "03:11:43"]
[Link "https://www.chess.com/game/live/75779581"]

1. e3 {[%clk 0:01:00]} 1... e5 {[%clk 0:01:00]} 2. d3 {[%clk 0:00:58.9]} 2... d5 {[%clk 0:00:58.4]} 3. h4 {[%clk 0:00:56.8]} 3... Nf6 {[%clk 0:00:57.6]} 4. e4 {[%clk 0:00:56.4]} 4... d4 {[%clk 0:00:55.3]} 5. f3 {[%clk 0:00:54.6]} 5... c5 {[%clk 0:00:55]} 6. g4 {[%clk 0:00:54.3]} 6... Nc6 {[%clk 0:00:54.7]} 7. g5 {[%clk 0:00:54]} 7... Nd7 {[%clk 0:00:54.4]} 8. c3 {[%clk 0:00:53.2]} 8... f6 {[%clk 0:00:54.1]} 9. cxd4 {[%clk 0:00:52.5]} 9... fxg5 {[%clk 0:00:53.2]} 10. dxc5 {[%clk 0:00:50.3]} 10... Nxc5 {[%clk 0:00:52.3]} 11. b4 {[%clk 0:00:48.9]} 11... Ne6 {[%clk 0:00:47.9]} 12. b5 {[%clk 0:00:47]} 12... Bb4+ {[%clk 0:00:47.3]} 13. Bd2 {[%clk 0:00:45.1]} 13... Bxd2+ {[%clk 0:00:46.9]} 14. Kxd2 {[%clk 0:00:44.8]} 14... Ncd4 {[%clk 0:00:46.6]} 15. Ke3 {[%clk 0:00:42.6]} 15... O-O {[%clk 0:00:45.4]} 16. Ne2 {[%clk 0:00:38.5]} 16... gxh4 {[%clk 0:00:45.1]} 17. Nxd4 {[%clk 0:00:37.6]} 17... Qg5+ {[%clk 0:00:44.8]} 18. Ke2 {[%clk 0:00:34]} 18... Nxd4+ {[%clk 0:00:44.2]} 19. Kf2 {[%clk 0:00:32.3]} 19... Qf4 {[%clk 0:00:42.6]} 20. Bg2 {[%clk 0:00:27.7]} 20... Bg4 {[%clk 0:00:37.3]} 21. Nd2 {[%clk 0:00:25.3]} 21... Nxf3 {[%clk 0:00:34.3]} 22. Bxf3 {[%clk 0:00:24.1]} 22... Rf7 {[%clk 0:00:32.2]} 23. Kf1 {[%clk 0:00:17.6]} 23... Raf8 {[%clk 0:00:31.8]} 24. Rh2 {[%clk 0:00:15.4]} 24... Bxf3 {[%clk 0:00:31]} 25. Rf2 {[%clk 0:00:14.7]} 25... Qg4 {[%clk 0:00:26]} 26. Nxf3 {[%clk 0:00:10.3]} 26... Rxf3 {[%clk 0:00:25.7]} 27. Ke1 {[%clk 0:00:06.8]} 27... Re3+ {[%clk 0:00:23.3]} 28. Re2 {[%clk 0:00:04.2]} 28... Qg3+ {[%clk 0:00:21.6]} 29. Kd2 {[%clk 0:00:00.6]} 29... Rf2 {[%clk 0:00:20.1]} 0-1

[Event "Live Chess"]
[Site "Chess.com"]
[Date "2010.12.10"]
[Round "-"]
[White "hipposcottimus"]
[Black "JeeBusSS"]
[Result "0-1"]
[CurrentPosition "6R1/8/5R1B/pkp3p1/7p/P1p4P/1PP3P1/2K1r3 w - -"]
[Timezone "UTC"]
[ECO "B07"]
[ECOUrl "https://www.chess.com/openings/Pirc-Defense-2.d4"]
[UTCDate "2010.12.10"]
[UTCTime "03:07:34"]
[WhiteElo "1680"]
[BlackElo "1506"]
[TimeControl "60"]
[Termination "JeeBusSS won by checkmate"]
[StartTime "03:07:34"]
[EndDate "2010.12.10"]
[EndTime "03:09:26"]
[Link "https://www.chess.com/game/live/75779072"]

1. e4 {[%clk 0:01:00]} 1... d6 {[%clk 0:01:00]} 2. d4 {[%clk 0:00:57.9]} 2... f6 {[%clk 0:00:59.3]} 3. f4 {[%clk 0:00:56.3]} 3... e5 {[%clk 0:00:58.9]} 4. dxe5 {[%clk 0:00:55.5]} 4... dxe5 {[%clk 0:00:58.4]} 5. Qxd8+ {[%clk 0:00:53.7]} 5... Kxd8 {[%clk 0:00:57.4]} 6. fxe5 {[%clk 0:00:53.4]} 6... fxe5 {[%clk 0:00:57.1]} 7. Nf3 {[%clk 0:00:52.6]} 7... h6 {[%clk 0:00:56.8]} 8. Nxe5 {[%clk 0:00:51.5]} 8... Bd6 {[%clk 0:00:55.9]} 9. Nf7+ {[%clk 0:00:50.7]} 9... Ke7 {[%clk 0:00:53.9]} 10. Nxh8 {[%clk 0:00:50.3]} 10... Be5 {[%clk 0:00:53.6]} 11. Ng6+ {[%clk 0:00:50]} 11... Kf7 {[%clk 0:00:51.6]} 12. Nxe5+ {[%clk 0:00:49.4]} 12... Ke6 {[%clk 0:00:49.1]} 13. Bf4 {[%clk 0:00:46.7]} 13... g5 {[%clk 0:00:47.1]} 14. Bg3 {[%clk 0:00:45.4]} 14... h5 {[%clk 0:00:45.6]} 15. h3 {[%clk 0:00:44.4]} 15... h4 {[%clk 0:00:45.3]} 16. Bh2 {[%clk 0:00:42.5]} 16... c6 {[%clk 0:00:43.4]} 17. Nc3 {[%clk 0:00:40.6]} 17... Nd7 {[%clk 0:00:43.1]} 18. Nxd7 {[%clk 0:00:36.7]} 18... Bxd7 {[%clk 0:00:42.8]} 19. O-O-O {[%clk 0:00:35.3]} 19... Re8 {[%clk 0:00:42.5]} 20. Bc4+ {[%clk 0:00:34.8]} 20... Ke7 {[%clk 0:00:40.2]} 21. Bd6+ {[%clk 0:00:31.7]} 21... Kd8 {[%clk 0:00:37.3]} 22. Na4 {[%clk 0:00:26.1]} 22... b5 {[%clk 0:00:37]} 23. Nc5 {[%clk 0:00:25.6]} 23... bxc4 {[%clk 0:00:35.5]} 24. Nb7+ {[%clk 0:00:23.3]} 24... Kc8 {[%clk 0:00:33.3]} 25. Bh2 {[%clk 0:00:18.8]} 25... Kxb7 {[%clk 0:00:32.6]} 26. Rxd7+ {[%clk 0:00:17.9]} 26... Kb6 {[%clk 0:00:29.8]} 27. Rg7 {[%clk 0:00:17.6]} 27... Kb5 {[%clk 0:00:27.7]} 28. Bd6 {[%clk 0:00:17.1]} 28... a5 {[%clk 0:00:25.8]} 29. a3 {[%clk 0:00:16.8]} 29... c5 {[%clk 0:00:24.4]} 30. Rf1 {[%clk 0:00:16.4]} 30... Kc6 {[%clk 0:00:24]} 31. Rf6 {[%clk 0:00:15.7]} 31... Rxe4 {[%clk 0:00:22]} 32. Rxg8 {[%clk 0:00:13.2]} 32... c3 {[%clk 0:00:20.6]} 33. Bf8+ {[%clk 0:00:10.9]} 33... Kb5 {[%clk 0:00:17.6]} 34. Bh6 {[%clk 0:00:08]} 34... Re1# {[%clk 0:00:17.2]} 0-1

[Event "Live Chess"]
[Site "Chess.com"]
[Date "2010.12.10"]
[Round "-"]
[White "hipposcottimus"]
[Black "benflordeliza"]
[Result "1-0"]
[CurrentPosition "6Q1/p2r4/6pk/7p/2nq4/8/P4PPP/2R2RK1 b - -"]
[Timezone "UTC"]
[ECO "C51"]
[ECOUrl "https://www.chess.com/openings/Giuoco-Piano-Game-Evans-Accepted-McDonnell-Defense-6.O-O"]
[UTCDate "2010.12.10"]
[UTCTime "02:08:02"]
[WhiteElo "1447"]
[BlackElo "1367"]
[TimeControl "600"]
[Termination "hipposcottimus won on time"]
[StartTime "02:08:02"]
[EndDate "2010.12.10"]
[EndTime "02:27:45"]
[Link "https://www.chess.com/game/live/75766163"]

1. e4 {[%clk 0:10:00]} 1... e5 {[%clk 0:10:00]} 2. Nf3 {[%clk 0:09:58.8]} 2... Nc6 {[%clk 0:09:53.3]} 3. Bc4 {[%clk 0:09:49.9]} 3... Bc5 {[%clk 0:09:50.8]} 4. b4 {[%clk 0:09:46.4]} 4... Bxb4 {[%clk 0:09:43.7]} 5. c3 {[%clk 0:09:44.6]} 5... Bc5 {[%clk 0:09:36.5]} 6. O-O {[%clk 0:09:39]} 6... Nf6 {[%clk 0:09:34]} 7. d4 {[%clk 0:09:37.2]} 7... exd4 {[%clk 0:09:32.3]} 8. cxd4 {[%clk 0:09:36.4]} 8... Be7 {[%clk 0:09:28.7]} 9. Nc3 {[%clk 0:09:25.9]} 9... d6 {[%clk 0:09:15.8]} 10. Qb3 {[%clk 0:09:20.8]} 10... O-O {[%clk 0:09:13.7]} 11. Ng5 {[%clk 0:09:16.2]} 11... Na5 {[%clk 0:09:08.8]} 12. Bxf7+ {[%clk 0:08:51.1]} 12... Kh8 {[%clk 0:09:05.7]} 13. Qa4 {[%clk 0:08:49.8]} 13... c6 {[%clk 0:08:52.3]} 14. Be6 {[%clk 0:08:32.7]} 14... b5 {[%clk 0:08:46.2]} 15. Nxb5 {[%clk 0:08:06.4]} 15... cxb5 {[%clk 0:08:37.2]} 16. Qxb5 {[%clk 0:08:04.5]} 16... Rb8 {[%clk 0:08:25.8]} 17. Qf5 {[%clk 0:07:55.1]} 17... g6 {[%clk 0:07:30.7]} 18. Qf3 {[%clk 0:07:33.8]} 18... Kg7 {[%clk 0:06:43.4]} 19. Qh3 {[%clk 0:06:52.8]} 19... Nh5 {[%clk 0:06:10.2]} 20. Bxc8 {[%clk 0:06:23.3]} 20... Bxg5 {[%clk 0:05:58.3]} 21. Bg4 {[%clk 0:05:38.3]} 21... Nf4 {[%clk 0:05:33.9]} 22. Qf3 {[%clk 0:04:22.2]} 22... Nd5 {[%clk 0:04:00.4]} 23. Bxg5 {[%clk 0:03:38.4]} 23... Qxg5 {[%clk 0:03:52.5]} 24. Qg3 {[%clk 0:02:40.8]} 24... h5 {[%clk 0:03:12.6]} 25. exd5 {[%clk 0:02:28.6]} 25... Qxg4 {[%clk 0:02:50.3]} 26. Qxd6 {[%clk 0:02:22.5]} 26... Rb6 {[%clk 0:02:29.6]} 27. Qe5+ {[%clk 0:01:37.2]} 27... Kh6 {[%clk 0:02:01.4]} 28. d6 {[%clk 0:01:35.7]} 28... Nc4 {[%clk 0:01:40.4]} 29. Qe7 {[%clk 0:01:19.7]} 29... Rg8 {[%clk 0:00:38.3]} 30. d7 {[%clk 0:01:07.2]} 30... Rd6 {[%clk 0:00:32.8]} 31. Qe8 {[%clk 0:00:38.8]} 31... Rxd7 {[%clk 0:00:05.1]} 32. Qxg8 {[%clk 0:00:36.1]} 32... Qxd4 {[%clk 0:00:01.4]} 33. Rac1 {[%clk 0:00:32.3]} 1-0

[Event "Live Chess"]
[Site "Chess.com"]
[Date "2010.12.10"]
[Round "-"]
[White "zen1"]
[Black "hipposcottimus"]
[Result "1-0"]
[CurrentPosition "7k/p5Q1/1p2N3/3P4/2P5/1P1B4/P4PPP/R4RK1 b - -"]
[Timezone "UTC"]
[ECO "A06"]
[ECOUrl "https://www.chess.com/openings/Reti-Opening-1...d5-2.e3"]
[UTCDate "2010.12.10"]
[UTCTime "01:40:35"]
[WhiteElo "2066"]
[BlackElo "1691"]
[TimeControl "60"]
[Termination "zen1 won by checkmate"]
[StartTime "01:40:35"]
[EndDate "2010.12.10"]
[EndTime "01:42:47"]
[Link "https://www.chess.com/game/live/75760447"]

1. Nf3 {[%clk 0:01:00]} 1... d5 {[%clk 0:01:00]} 2. e3 {[%clk 0:01:00]} 2... Bg4 {[%clk 0:00:59.2]} 3. c4 {[%clk 0:00:59.3]} 3... e5 {[%clk 0:00:57.5]} 4. Be2 {[%clk 0:00:56.3]} 4... e4 {[%clk 0:00:56.5]} 5. Nd4 {[%clk 0:00:55.6]} 5... Bf5 {[%clk 0:00:56.1]} 6. Nxf5 {[%clk 0:00:54.2]} 6... g6 {[%clk 0:00:55.8]} 7. Ng3 {[%clk 0:00:53.3]} 7... Nc6 {[%clk 0:00:55.5]} 8. O-O {[%clk 0:00:52.5]} 8... d4 {[%clk 0:00:54.1]} 9. exd4 {[%clk 0:00:51.5]} 9... Nf6 {[%clk 0:00:53.8]} 10. d5 {[%clk 0:00:50.4]} 10... Ne5 {[%clk 0:00:52.9]} 11. b3 {[%clk 0:00:46.4]} 11... Bc5 {[%clk 0:00:52.4]} 12. Bb2 {[%clk 0:00:45.3]} 12... O-O {[%clk 0:00:52]} 13. Bxe5 {[%clk 0:00:44.5]} 13... Bd6 {[%clk 0:00:51]} 14. Bxd6 {[%clk 0:00:42.3]} 14... Qxd6 {[%clk 0:00:50.7]} 15. d3 {[%clk 0:00:39.9]} 15... c6 {[%clk 0:00:50.2]} 16. dxe4 {[%clk 0:00:38.8]} 16... cxd5 {[%clk 0:00:49.6]} 17. exd5 {[%clk 0:00:37]} 17... Qf4 {[%clk 0:00:47]} 18. Nc3 {[%clk 0:00:35.7]} 18... Qh6 {[%clk 0:00:46.6]} 19. Nce4 {[%clk 0:00:34.5]} 19... Nh5 {[%clk 0:00:41]} 20. Nxh5 {[%clk 0:00:31.8]} 20... gxh5 {[%clk 0:00:40.7]} 21. Qc1 {[%clk 0:00:29.3]} 21... Kh8 {[%clk 0:00:40.3]} 22. Qxh6 {[%clk 0:00:28]} 22... f6 {[%clk 0:00:39.6]} 23. Nxf6 {[%clk 0:00:25.6]} 23... Rf7 {[%clk 0:00:38.3]} 24. Bd3 {[%clk 0:00:23.4]} 24... Rg7 {[%clk 0:00:36]} 25. Nxh5 {[%clk 0:00:21.3]} 25... Re7 {[%clk 0:00:30.7]} 26. Nf6 {[%clk 0:00:19.7]} 26... Rf7 {[%clk 0:00:29.8]} 27. Nxh7 {[%clk 0:00:18.4]} 27... Kg8 {[%clk 0:00:27.3]} 28. Qg6+ {[%clk 0:00:16.9]} 28... Rg7 {[%clk 0:00:26.3]} 29. Nf6+ {[%clk 0:00:14.8]} 29... Kf8 {[%clk 0:00:24.2]} 30. Qh6 {[%clk 0:00:12]} 30... Kf7 {[%clk 0:00:22.8]} 31. Nh5 {[%clk 0:00:10.7]} 31... Rgg8 {[%clk 0:00:20]} 32. Qh7+ {[%clk 0:00:09]} 32... Rg7 {[%clk 0:00:19.2]} 33. Qf5+ {[%clk 0:00:07.4]} 33... Kg8 {[%clk 0:00:17.5]} 34. Nxg7 {[%clk 0:00:06.6]} 34... Rf8 {[%clk 0:00:16.8]} 35. Qg5 {[%clk 0:00:05.1]} 35... Rf7 {[%clk 0:00:15.6]} 36. Ne6+ {[%clk 0:00:04.2]} 36... Kh8 {[%clk 0:00:13]} 37. Qh6+ {[%clk 0:00:03.3]} 37... Kg8 {[%clk 0:00:11.2]} 38. Qg6+ {[%clk 0:00:01.8]} 38... Kh8 {[%clk 0:00:08.4]} 39. Qxf7 {[%clk 0:00:01.8]} 39... b6 {[%clk 0:00:06]} 40. Qg7# {[%clk 0:00:01.8]} 1-0

[Event "Live Chess"]
[Site "Chess.com"]
[Date "2010.12.10"]
[Round "-"]
[White "hipposcottimus"]
[Black "zen1"]
[Result "1-0"]
[CurrentPosition "rn1q1rk1/2pb1ppQ/p2b2n1/1p4N1/8/1BP5/PP3PPP/RNB2RK1 b - -"]
[Timezone "UTC"]
[ECO "B03"]
[ECOUrl "https://www.chess.com/openings/Alekhines-Defense-Normal-Variation-3.d4"]
[UTCDate "2010.12.10"]
[UTCTime "01:39:20"]
[WhiteElo "1693"]
[BlackElo "2064"]
[TimeControl "60"]
[Termination "hipposcottimus won by checkmate"]
[StartTime "01:39:20"]
[EndDate "2010.12.10"]
[EndTime "01:40:21"]
[Link "https://www.chess.com/game/live/75760192"]

1. e4 {[%clk 0:01:00]} 1... Nf6 {[%clk 0:01:00]} 2. e5 {[%clk 0:00:58.5]} 2... Nd5 {[%clk 0:00:59.6]} 3. d4 {[%clk 0:00:58.2]} 3... Nb4 {[%clk 0:00:59.2]} 4. c3 {[%clk 0:00:57.1]} 4... N4c6 {[%clk 0:00:58.8]} 5. Nf3 {[%clk 0:00:56.7]} 5... d6 {[%clk 0:00:58.4]} 6. Bb5 {[%clk 0:00:56.3]} 6... Bd7 {[%clk 0:00:55.8]} 7. Ba4 {[%clk 0:00:55.2]} 7... e6 {[%clk 0:00:53.9]} 8. O-O {[%clk 0:00:54.1]} 8... Be7 {[%clk 0:00:53.1]} 9. d5 {[%clk 0:00:53.2]} 9... exd5 {[%clk 0:00:51.9]} 10. Qxd5 {[%clk 0:00:51.9]} 10... O-O {[%clk 0:00:50.5]} 11. exd6 {[%clk 0:00:50.1]} 11... Bxd6 {[%clk 0:00:49.1]} 12. Ng5 {[%clk 0:00:48.8]} 12... a6 {[%clk 0:00:39.3]} 13. Bb3 {[%clk 0:00:47.7]} 13... Ne7 {[%clk 0:00:34.9]} 14. Qc4 {[%clk 0:00:44.6]} 14... b5 {[%clk 0:00:31.1]} 15. Qh4 {[%clk 0:00:42.1]} 15... Ng6 {[%clk 0:00:28.6]} 16. Qxh7# {[%clk 0:00:38.3]} 1-0

[Event "Live Chess"]
[Site "Chess.com"]
[Date "2010.12.10"]
[Round "-"]
[White "Renon-Allen"]
[Black "hipposcottimus"]
[Result "0-1"]
[CurrentPosition "8/1p6/p7/2k5/P1n3p1/4Pr2/4K3/6R1 w - -"]
[Timezone "UTC"]
[ECO "A00"]
[ECOUrl "https://www.chess.com/openings/Anderssen-Opening-Creepy-Crawly-Formation-Classical-Defense"]
[UTCDate "2010.12.10"]
[UTCTime "01:36:29"]
[WhiteElo "1597"]
[BlackElo "1677"]
[TimeControl "60"]
[Termination "hipposcottimus won on time"]
[StartTime "01:36:29"]
[EndDate "2010.12.10"]
[EndTime "01:38:46"]
[Link "https://www.chess.com/game/live/75759495"]

1. h3 {[%clk 0:01:00]} 1... e5 {[%clk 0:01:00]} 2. a3 {[%clk 0:00:59.7]} 2... d5 {[%clk 0:00:59.7]} 3. e3 {[%clk 0:00:59.4]} 3... c5 {[%clk 0:00:59.4]} 4. d3 {[%clk 0:00:59.1]} 4... e4 {[%clk 0:00:58.6]} 5. dxe4 {[%clk 0:00:57.7]} 5... dxe4 {[%clk 0:00:58.3]} 6. Qxd8+ {[%clk 0:00:56.2]} 6... Kxd8 {[%clk 0:00:58]} 7. Bc4 {[%clk 0:00:53.9]} 7... Be6 {[%clk 0:00:54.5]} 8. Bxe6 {[%clk 0:00:51.4]} 8... fxe6 {[%clk 0:00:54.2]} 9. Ne2 {[%clk 0:00:51.1]} 9... Nd7 {[%clk 0:00:53.7]} 10. O-O {[%clk 0:00:50.7]} 10... Kc7 {[%clk 0:00:53.3]} 11. Nf4 {[%clk 0:00:50.1]} 11... Rc8 {[%clk 0:00:53]} 12. Bd2 {[%clk 0:00:49.6]} 12... Kb8 {[%clk 0:00:52.6]} 13. Nc3 {[%clk 0:00:48.1]} 13... Ngf6 {[%clk 0:00:52.2]} 14. Nb5 {[%clk 0:00:46.8]} 14... e5 {[%clk 0:00:51.6]} 15. Ne2 {[%clk 0:00:45]} 15... g5 {[%clk 0:00:49.9]} 16. Nec3 {[%clk 0:00:44.1]} 16... h5 {[%clk 0:00:49]} 17. Na2 {[%clk 0:00:43]} 17... g4 {[%clk 0:00:48.7]} 18. h4 {[%clk 0:00:41]} 18... Rg8 {[%clk 0:00:46.4]} 19. g3 {[%clk 0:00:40.3]} 19... Nd5 {[%clk 0:00:43.2]} 20. Bc3 {[%clk 0:00:38.6]} 20... Bh6 {[%clk 0:00:40.3]} 21. a4 {[%clk 0:00:35.1]} 21... a6 {[%clk 0:00:40]} 22. Nd6 {[%clk 0:00:32.5]} 22... Rc6 {[%clk 0:00:38.6]} 23. Nf5 {[%clk 0:00:30.4]} 23... Rf6 {[%clk 0:00:37]} 24. Nd6 {[%clk 0:00:29.2]} 24... Rgf8 {[%clk 0:00:33.9]} 25. Nxe4 {[%clk 0:00:24.1]} 25... Rf3 {[%clk 0:00:31.3]} 26. Ng5 {[%clk 0:00:22.8]} 26... Bxg5 {[%clk 0:00:30.3]} 27. hxg5 {[%clk 0:00:22.1]} 27... Rg8 {[%clk 0:00:30]} 28. Nc1 {[%clk 0:00:20]} 28... Rxg5 {[%clk 0:00:29.7]} 29. Nd3 {[%clk 0:00:19.1]} 29... h4 {[%clk 0:00:28.5]} 30. Bxe5+ {[%clk 0:00:17.7]} 30... Nxe5 {[%clk 0:00:26.5]} 31. Nxe5 {[%clk 0:00:16.9]} 31... Rxe5 {[%clk 0:00:26.2]} 32. c4 {[%clk 0:00:16.6]} 32... Nb4 {[%clk 0:00:23.5]} 33. Rad1 {[%clk 0:00:15.9]} 33... hxg3 {[%clk 0:00:21.2]} 34. Rd8+ {[%clk 0:00:14.5]} 34... Kc7 {[%clk 0:00:20.8]} 35. Rfd1 {[%clk 0:00:12.7]} 35... gxf2+ {[%clk 0:00:20.1]} 36. Kf1 {[%clk 0:00:11.9]} 36... Rh5 {[%clk 0:00:19.3]} 37. R8d7+ {[%clk 0:00:10.8]} 37... Kb6 {[%clk 0:00:19]} 38. R7d6+ {[%clk 0:00:09.6]} 38... Nc6 {[%clk 0:00:18.7]} 39. Ke2 {[%clk 0:00:07.6]} 39... Rh2 {[%clk 0:00:16.3]} 40. Rf1 {[%clk 0:00:06.1]} 40... Rg2 {[%clk 0:00:14.4]} 41. Rdd1 {[%clk 0:00:04.3]} 41... Rg1 {[%clk 0:00:13.1]} 42. Rxg1 {[%clk 0:00:02.7]} 42... fxg1=Q {[%clk 0:00:11.7]} 43. Rxg1 {[%clk 0:00:02]} 43... Ne5 {[%clk 0:00:09.2]} 44. b4 {[%clk 0:00:00.9]} 44... Nxc4 {[%clk 0:00:08.3]} 45. bxc5+ {[%clk 0:00:00.1]} 45... Kxc5 {[%clk 0:00:06.3]} 0-1

[Event "Live Chess"]
[Site "Chess.com"]
[Date "2010.12.10"]
[Round "-"]
[White "hipposcottimus"]
[Black "aithomas87"]
[Result "1-0"]
[CurrentPosition "1k5r/pQp1q3/6pp/8/2P5/2Pr4/P3pPPP/1R3R1K b - -"]
[Timezone "UTC"]
[ECO "B07"]
[ECOUrl "https://www.chess.com/openings/Pirc-Defense-Modern-Defense-Geller-System"]
[UTCDate "2010.12.10"]
[UTCTime "01:33:33"]
[WhiteElo "1671"]
[BlackElo "1743"]
[TimeControl "60"]
[Termination "hipposcottimus won by checkmate"]
[StartTime "01:33:33"]
[EndDate "2010.12.10"]
[EndTime "01:35:01"]
[Link "https://www.chess.com/game/live/75758991"]

1. e4 {[%clk 0:01:00]} 1... d6 {[%clk 0:01:00]} 2. Nf3 {[%clk 0:00:59.6]} 2... Nd7 {[%clk 0:01:00]} 3. d4 {[%clk 0:00:59.2]} 3... g6 {[%clk 0:00:59.4]} 4. e5 {[%clk 0:00:58.8]} 4... Bg7 {[%clk 0:00:59.1]} 5. Bf4 {[%clk 0:00:55.3]} 5... Bh6 {[%clk 0:00:53.8]} 6. Qd2 {[%clk 0:00:51.8]} 6... Bxf4 {[%clk 0:00:52.6]} 7. Qxf4 {[%clk 0:00:50.8]} 7... dxe5 {[%clk 0:00:51.7]} 8. dxe5 {[%clk 0:00:49.6]} 8... e6 {[%clk 0:00:51]} 9. Ng5 {[%clk 0:00:47.6]} 9... Qe7 {[%clk 0:00:49.4]} 10. Nc3 {[%clk 0:00:44.5]} 10... h6 {[%clk 0:00:48.5]} 11. Nge4 {[%clk 0:00:38.5]} 11... f6 {[%clk 0:00:47.1]} 12. Nxf6+ {[%clk 0:00:36.8]} 12... Ndxf6 {[%clk 0:00:46]} 13. exf6 {[%clk 0:00:36.6]} 13... Nxf6 {[%clk 0:00:43.4]} 14. Bb5+ {[%clk 0:00:36.3]} 14... Bd7 {[%clk 0:00:42]} 15. Ba4 {[%clk 0:00:36]} 15... Bxa4 {[%clk 0:00:40.9]} 16. Nxa4 {[%clk 0:00:35.7]} 16... e5 {[%clk 0:00:39.5]} 17. Qe3 {[%clk 0:00:34]} 17... O-O-O {[%clk 0:00:38]} 18. O-O {[%clk 0:00:33.6]} 18... Nd5 {[%clk 0:00:37.1]} 19. Qh3+ {[%clk 0:00:33.3]} 19... Kb8 {[%clk 0:00:34.8]} 20. c4 {[%clk 0:00:31.6]} 20... Nf4 {[%clk 0:00:33.8]} 21. Qc3 {[%clk 0:00:29.4]} 21... e4 {[%clk 0:00:30.5]} 22. Qb3 {[%clk 0:00:28.9]} 22... Rd3 {[%clk 0:00:28.7]} 23. Nc3 {[%clk 0:00:26.9]} 23... Ne2+ {[%clk 0:00:27.1]} 24. Kh1 {[%clk 0:00:24.7]} 24... Nxc3 {[%clk 0:00:26.3]} 25. bxc3 {[%clk 0:00:24.3]} 25... e3 {[%clk 0:00:24.7]} 26. Rab1 {[%clk 0:00:23.6]} 26... e2 {[%clk 0:00:23.5]} 27. Qxb7# {[%clk 0:00:21.9]} 1-0

[Event "Live Chess"]
[Site "Chess.com"]
[Date "2010.12.10"]
[Round "-"]
[White "hipposcottimus"]
[Black "vinkos5"]
[Result "0-1"]
[CurrentPosition "2rr2k1/4b1pp/4p3/3p4/3N4/1Q1b1P2/P2K2PP/8 w - -"]
[Timezone "UTC"]
[ECO "B22"]
[ECOUrl "https://www.chess.com/openings/Alapin-Sicilian-Defense-2...e6-3.d4"]
[UTCDate "2010.12.10"]
[UTCTime "01:30:25"]
[WhiteElo "1660"]
[BlackElo "1749"]
[TimeControl "60"]
[Termination "vinkos5 won on time"]
[StartTime "01:30:25"]
[EndDate "2010.12.10"]
[EndTime "01:32:38"]
[Link "https://www.chess.com/game/live/75758221"]

1. e4 {[%clk 0:01:00]} 1... e6 {[%clk 0:01:00]} 2. d4 {[%clk 0:00:59.6]} 2... c5 {[%clk 0:00:58.6]} 3. c3 {[%clk 0:00:57.7]} 3... cxd4 {[%clk 0:00:57.9]} 4. cxd4 {[%clk 0:00:57.4]} 4... d6 {[%clk 0:00:57.4]} 5. Nc3 {[%clk 0:00:57]} 5... Be7 {[%clk 0:00:57.4]} 6. Nf3 {[%clk 0:00:56.7]} 6... Nd7 {[%clk 0:00:57.4]} 7. Bd3 {[%clk 0:00:56.3]} 7... b5 {[%clk 0:00:57.4]} 8. d5 {[%clk 0:00:56]} 8... a6 {[%clk 0:00:57]} 9. dxe6 {[%clk 0:00:54.4]} 9... fxe6 {[%clk 0:00:56.4]} 10. Nxb5 {[%clk 0:00:53]} 10... axb5 {[%clk 0:00:51.9]} 11. Bxb5 {[%clk 0:00:52.7]} 11... Ba6 {[%clk 0:00:51.5]} 12. Ba4 {[%clk 0:00:49]} 12... Qa5+ {[%clk 0:00:49]} 13. Bd2 {[%clk 0:00:44.3]} 13... Qxa4 {[%clk 0:00:48.1]} 14. Qxa4 {[%clk 0:00:42.7]} 14... Nf6 {[%clk 0:00:46]} 15. Qb3 {[%clk 0:00:37.8]} 15... Nc5 {[%clk 0:00:44]} 16. Qe3 {[%clk 0:00:35.6]} 16... Nd3+ {[%clk 0:00:41.2]} 17. Kd1 {[%clk 0:00:33.2]} 17... Nxb2+ {[%clk 0:00:40.1]} 18. Ke1 {[%clk 0:00:32]} 18... Nd3+ {[%clk 0:00:38.6]} 19. Kd1 {[%clk 0:00:31.6]} 19... Nb2+ {[%clk 0:00:36.6]} 20. Kc1 {[%clk 0:00:30.3]} 20... Nd3+ {[%clk 0:00:31.7]} 21. Kb1 {[%clk 0:00:27.4]} 21... Rb8+ {[%clk 0:00:30.8]} 22. Kc2 {[%clk 0:00:21.7]} 22... d5 {[%clk 0:00:24.5]} 23. Bc3 {[%clk 0:00:21.2]} 23... O-O {[%clk 0:00:20.8]} 24. Nd4 {[%clk 0:00:20.5]} 24... Nxe4 {[%clk 0:00:18.7]} 25. Rab1 {[%clk 0:00:19.3]} 25... Rbc8 {[%clk 0:00:14.3]} 26. Rb3 {[%clk 0:00:15.6]} 26... Ndc5 {[%clk 0:00:11.8]} 27. Ra3 {[%clk 0:00:10.7]} 27... Nd3 {[%clk 0:00:09.9]} 28. Rb1 {[%clk 0:00:08.2]} 28... Nxc3 {[%clk 0:00:07.4]} 29. f3 {[%clk 0:00:07.3]} 29... Nb5+ {[%clk 0:00:03.9]} 30. Kd2 {[%clk 0:00:05.2]} 30... Nxa3 {[%clk 0:00:03.9]} 31. Qxd3 {[%clk 0:00:04]} 31... Nxb1+ {[%clk 0:00:03.9]} 32. Qxb1 {[%clk 0:00:02]} 32... Bd3 {[%clk 0:00:03.9]} 33. Qb3 {[%clk 0:00:00.9]} 33... Rfd8 {[%clk 0:00:03.4]} 0-1